{"text_format":"1","workbook":"xlsx","n_sheets":21,"sheets":["Титульный лист","Раздел 1.1","Раздел 1.2","Раздел 1.3","Раздел 1.4","Раздел 1.5","Раздел 1.6","Раздел 2.1","Раздел 2.2","Раздел 2.3","Раздел 2.4","Раздел 2.5","Раздел 2.6","Раздел 2.7","Раздел 3.1","Раздел 3.2","Раздел 3.3","Раздел 3.4","Spravichnik","Флак","Rezerv"],"not_rendered":{"charts":0,"images":0,"macros":1,"external_links":0,"defined_names":43,"comments":1,"pivot_tables":0},"unopened":[],"bounds":{"document_bytes":16777216,"sheet_cells":100000,"rows_first":2000,"rows_last":500,"rows_between":2000,"halvings":0,"cell_chars":16384,"cell_head_chars":4096},"cells_cut":0,"cells_raw":0,"read":"whole","date_system":"1900"}

{"sheet":"Титульный лист","index":0,"n_rows":38,"n_cols":71,"rows_kept":38,"cut":false,"hidden":false,"merged":[[19,75,20,83],[36,67,36,83],[37,0,37,15],[37,16,37,32],[37,33,37,49],[37,50,37,66],[37,67,37,83],[36,0,36,15],[36,16,36,32],[36,33,36,49],[36,50,36,66],[29,0,29,22],[29,23,29,83],[30,0,35,15],[30,16,30,83],[31,16,35,32],[31,33,35,49],[31,50,35,66],[31,67,35,83],[11,7,11,75],[13,7,13,75],[15,4,15,78],[17,7,17,75],[28,0,28,22],[28,23,28,83],[25,0,25,49],[24,50,24,64],[25,50,25,64],[19,10,19,72],[20,10,20,39],[20,40,20,42],[20,43,20,72],[26,0,26,49],[26,70,26,78],[26,50,26,64],[22,0,22,49],[22,50,22,64],[22,68,22,80],[23,0,23,49],[23,50,23,64],[23,66,25,82],[24,0,24,49]]}
[]
[]
[]
[]
[]
[]
[]
[]
[]
[]
[]
[null,null,null,null,null,null,null,"ФЕДЕРАЛЬНОЕ СТАТИСТИЧЕСКОЕ НАБЛЮДЕНИЕ"]
[]
[null,null,null,null,null,null,null,"КОНФИДЕНЦИАЛЬНОСТЬ ГАРАНТИРУЕТСЯ ПОЛУЧАТЕЛЕМ ИНФОРМАЦИИ"]
[]
[null,null,null,null,"Нарушение порядка представления статистической информации, а равно представление недостоверной статистической информации влечет ответственность, установленную статьей 13.19 Кодекса Российской Федерации об административных правонарушениях от 30.12.2001 № 195-ФЗ, а также статьей 3 Закона Российской Федерации от 13.05.92 № 2761-1 “Об ответственности за нарушение порядка представления государственной статистической отчетности”"]
[]
[null,null,null,null,null,null,null,"ВОЗМОЖНО ПРЕДОСТАВЛЕНИЕ В ЭЛЕКТРОННОМ ВИДЕ"]
[]
[null,null,null,null,null,null,null,null,null,null,"СВЕДЕНИЯ О МАТЕРИАЛЬНО–ТЕХНИЧЕСКОЙ И ИНФОРМАЦИОННОЙ БАЗЕ, ФИНАНСОВО-ЭКОНОМИЧЕСКОЙ ДЕЯТЕЛЬНОСТИ  ОБЩЕОБРАЗОВАТЕЛЬНОЙ ОРГАНИЗАЦИИ"]
[null,null,null,null,null,null,null,null,null,null,"за",null,null,null,null,null,null,null,null,null,null,null,null,null,null,null,null,null,null,null,null,null,null,null,null,null,null,null,null,null,2016,null,null,"год"]
[]
["Предоставляют:",null,null,null,null,null,null,null,null,null,null,null,null,null,null,null,null,null,null,null,null,null,null,null,null,null,null,null,null,null,null,null,null,null,null,null,null,null,null,null,null,null,null,null,null,null,null,null,null,null,"Сроки предоставления",null,null,null,null,null,null,null,null,null,null,null,null,null,null,null,null,null,"Форма № ОО-2"]
["юридические лица, осуществляющие образовательную деятельность по образовательным программам начального общего, основного общего, среднего общего образования:",null,null,null,null,null,null,null,null,null,null,null,null,null,null,null,null,null,null,null,null,null,null,null,null,null,null,null,null,null,null,null,null,null,null,null,null,null,null,null,null,null,null,null,null,null,null,null,null,null,null,null,null,null,null,null,null,null,null,null,null,null,null,null,null,null,"Приказ Росстата:\nОб утверждении формы\nот  23.12.2016 № 851\nО внесении изменений\n(при наличии)\nот  __________ № ___\nот  __________ № ___"]
["     - Министерству образования и науки Российской Федерации",null,null,null,null,null,null,null,null,null,null,null,null,null,null,null,null,null,null,null,null,null,null,null,null,null,null,null,null,null,null,null,null,null,null,null,null,null,null,null,null,null,null,null,null,null,null,null,null,null,"20 апреля \nпосле отчетного периода"]
[]
[null,null,null,null,null,null,null,null,null,null,null,null,null,null,null,null,null,null,null,null,null,null,null,null,null,null,null,null,null,null,null,null,null,null,null,null,null,null,null,null,null,null,null,null,null,null,null,null,null,null,null,null,null,null,null,null,null,null,null,null,null,null,null,null,null,null,null,null,null,null,"Годовая"]
[]
["Наименование отчитывающейся организации"]
["Почтовый адрес"]
["Код \nформы \nпо ОКУД",null,null,null,null,null,null,null,null,null,null,null,null,null,null,null,"Код"]
[null,null,null,null,null,null,null,null,null,null,null,null,null,null,null,null,"отчитывающейся организации по ОКПО",null,null,null,null,null,null,null,null,null,null,null,null,null,null,null,null,"ИНН",null,null,null,null,null,null,null,null,null,null,null,null,null,null,null,null,"КПП",null,null,null,null,null,null,null,null,null,null,null,null,null,null,null,null,"ОГРН"]
[]
[]
[]
[]
[1,null,null,null,null,null,null,null,null,null,null,null,null,null,null,null,2,null,null,null,null,null,null,null,null,null,null,null,null,null,null,null,null,3,null,null,null,null,null,null,null,null,null,null,null,null,null,null,null,null,4,null,null,null,null,null,null,null,null,null,null,null,null,null,null,null,null,5]
[609562]

{"sheet":"Раздел 1.1","index":1,"n_rows":47,"n_cols":29,"rows_kept":47,"cut":false,"hidden":false,"merged":[[14,0,14,28],[15,0,15,28],[17,0,17,28],[16,0,16,28]]}
[]
[]
[]
[]
[]
[]
[]
[]
[]
[]
[]
[]
[]
[]
["Раздел 1. Имущество организации\n(на конец отчетного года)"]
["1.1. Характеристика здания (зданий)"]
["Укажите в графах по каждой из строк соответствующий код: да – 1, нет – 0"]
["Код по ОКЕИ: единица – 642"]
["Наименование\nпоказателей",null,null,null,null,null,null,null,null,null,null,null,null,null,"№\nстроки","Оборудо-вано водо-проводом","Оборудо-вано водо-отведением (канализаци-ей)","Оборудо-вано цен-тральным отоплением","Оборудо-вано сис-темой видео-наблюдения","Требует капи-тального  ремонта","Находится в аварийном состоянии","Имеет ограждение территории","Имеет охрану"," Оборудова-но автомати-ческой пожарной сигнали-зацией ","Имеет дымовые извещатели","Имеет пожарные краны и рукава","Оборудова-но кнопкой тревожной сигнали-зации","Созданы условия для беспрепят-ственного доступа инвалидов ","Признак наличия здания"]
[1,null,null,null,null,null,null,null,null,null,null,null,null,null,2,3,4,5,6,7,8,9,10,11,12,13,14,15,16]
["Здание 1",null,null,null,null,null,null,null,null,null,null,null,null,null,1,15,15,15,15,0,0,15,9,15,15,10,9,9,1]
["Здание 2",null,null,null,null,null,null,null,null,null,null,null,null,null,2,1,1,2,1,0,0,2,1,2,2,1,1,0,{"$f":"IF(COUNTBLANK(P22:AB22)<13,1,0)","v":1}]
["Здание 3",null,null,null,null,null,null,null,null,null,null,null,null,null,3,0,0,0,0,0,0,0,0,0,0,0,0,0,{"$f":"IF(COUNTBLANK(P23:AB23)<13,1,0)","v":1}]
["Здание 4",null,null,null,null,null,null,null,null,null,null,null,null,null,4,0,0,0,0,0,0,0,0,0,0,0,0,0,1]
["Здание 5",null,null,null,null,null,null,null,null,null,null,null,null,null,5,0,0,0,0,0,0,0,0,0,0,0,0,0,1]
["Здание 6",null,null,null,null,null,null,null,null,null,null,null,null,null,6,0,0,0,0,0,0,0,0,0,0,0,0,0,1]
["Здание 7",null,null,null,null,null,null,null,null,null,null,null,null,null,7,0,0,0,0,0,0,0,0,0,0,0,0,0,1]
["Здание 8",null,null,null,null,null,null,null,null,null,null,null,null,null,8,0,0,0,0,0,0,0,0,0,0,0,0,0,1]
["Здание 9",null,null,null,null,null,null,null,null,null,null,null,null,null,9,0,0,0,0,0,0,0,0,0,0,0,0,0,1]
["Здание 10",null,null,null,null,null,null,null,null,null,null,null,null,null,10,0,0,0,0,0,0,0,0,0,0,0,0,0,1]
["Здание 11",null,null,null,null,null,null,null,null,null,null,null,null,null,11,0,0,0,0,0,0,0,0,0,0,0,0,0,1]
["Здание 12",null,null,null,null,null,null,null,null,null,null,null,null,null,12,0,0,0,0,0,0,0,0,0,0,0,0,0,1]
["Здание 13",null,null,null,null,null,null,null,null,null,null,null,null,null,13,0,0,0,0,0,0,0,0,0,0,0,0,0,1]
["Здание 14",null,null,null,null,null,null,null,null,null,null,null,null,null,14,0,0,0,0,0,0,0,0,0,0,0,0,0,1]
["Здание 15",null,null,null,null,null,null,null,null,null,null,null,null,null,15,0,0,0,0,0,0,0,0,0,0,0,0,0,1]
["Здание 16",null,null,null,null,null,null,null,null,null,null,null,null,null,16,0,0,0,0,0,0,0,0,0,0,0,0,0,1]
["Здание 17",null,null,null,null,null,null,null,null,null,null,null,null,null,17,0,0,0,0,0,0,0,0,0,0,0,0,0,1]
["Здание 18",null,null,null,null,null,null,null,null,null,null,null,null,null,18,0,0,0,0,0,0,0,0,0,0,0,0,0,1]
["Здание 19",null,null,null,null,null,null,null,null,null,null,null,null,null,19,0,0,0,0,0,0,0,0,0,0,0,0,0,1]
["Здание 20",null,null,null,null,null,null,null,null,null,null,null,null,null,20,0,0,0,0,0,0,0,0,0,0,0,0,0,1]
["Здание 21",null,null,null,null,null,null,null,null,null,null,null,null,null,21,0,0,0,0,0,0,0,0,0,0,0,0,0,1]
["Здание 22",null,null,null,null,null,null,null,null,null,null,null,null,null,22,0,0,0,0,0,0,0,0,0,0,0,0,0,1]
["Здание 23",null,null,null,null,null,null,null,null,null,null,null,null,null,23,0,0,0,0,0,0,0,0,0,0,0,0,0,1]
["Здание 24",null,null,null,null,null,null,null,null,null,null,null,null,null,24,0,0,0,0,0,0,0,0,0,0,0,0,0,1]
["Здание 25",null,null,null,null,null,null,null,null,null,null,null,null,null,25,0,0,0,0,0,0,0,0,0,0,0,0,0,1]
["Здание 26",null,null,null,null,null,null,null,null,null,null,null,null,null,26,0,0,0,0,0,0,0,0,0,0,0,0,0,1]
["Справка 1.\nЧисло огнетушителей (ед)",null,null,null,null,null,null,null,null,null,null,null,null,null,27,342]

{"sheet":"Раздел 1.2","index":2,"n_rows":46,"n_cols":17,"rows_kept":46,"cut":false,"hidden":false,"merged":[[16,0,16,16],[17,0,17,16],[47,0,47,16]]}
[]
[]
[]
[]
[]
[]
[]
[]
[]
[]
[]
[]
[]
[]
[]
[]
["1.2. Сведения о помещениях"]
["Код по ОКЕИ: единица – 642, место – 698"]
["Наименование показателей",null,null,null,null,null,null,null,null,null,null,null,null,null,"№\nстроки","В собственности\nкод: да – 1, нет – 0","На условиях договора пользования:\nКод:  да – 1, нет – 0"]
[1,null,null,null,null,null,null,null,null,null,null,null,null,null,2,3,4]
["Актовый зал",null,null,null,null,null,null,null,null,null,null,null,null,null,1,0,10]
["Спортивный зал ",null,null,null,null,null,null,null,null,null,null,null,null,null,2,0,14]
["Закрытый плавательный бассейн",null,null,null,null,null,null,null,null,null,null,null,null,null,3,0,0]
["Столовая или зал для приема пищи",null,null,null,null,null,null,null,null,null,null,null,null,null,4,0,14]
["Оборудованные кабинеты:\n   основ информатики и вычислительной техники",null,null,null,null,null,null,null,null,null,null,null,null,null,5,0,13]
["   физики",null,null,null,null,null,null,null,null,null,null,null,null,null,6,0,11]
["   химии",null,null,null,null,null,null,null,null,null,null,null,null,null,7,0,11]
["   биологии",null,null,null,null,null,null,null,null,null,null,null,null,null,8,0,8]
["   географии",null,null,null,null,null,null,null,null,null,null,null,null,null,9,0,8]
["   для внеурочной деятельности",null,null,null,null,null,null,null,null,null,null,null,null,null,10,0,8]
["   основ безопасности и жизнедеятельности",null,null,null,null,null,null,null,null,null,null,null,null,null,11,0,8]
["   иностранного языка",null,null,null,null,null,null,null,null,null,null,null,null,null,12,0,9]
["Мастерские для трудового обучения",null,null,null,null,null,null,null,null,null,null,null,null,null,13,0,10]
["Кабинет домоводства",null,null,null,null,null,null,null,null,null,null,null,null,null,14,0,10]
["Музей",null,null,null,null,null,null,null,null,null,null,null,null,null,15,0,7]
["Учебно-опытный земельный участок",null,null,null,null,null,null,null,null,null,null,null,null,null,16,0,4]
["Лекционная аудитория ",null,null,null,null,null,null,null,null,null,null,null,null,null,17,0,0]
["Медицинский пункт (кабинет)",null,null,null,null,null,null,null,null,null,null,null,null,null,18,0,12]
["Логопедический пункт (кабинет)",null,null,null,null,null,null,null,null,null,null,null,null,null,19,0,0]
["Кабинет учителя-дефектолога",null,null,null,null,null,null,null,null,null,null,null,null,null,20,0,0]
["Кабинет педагога-психолога",null,null,null,null,null,null,null,null,null,null,null,null,null,21,0,6]
["Оборудованная территория для реализации раздела\n«Легкая атлетика» программы по физической культуре",null,null,null,null,null,null,null,null,null,null,null,null,null,22,0,7]
["Справка 2.\nКоличество классных комнат (кабинетов) (ед)",null,null,null,null,null,null,null,null,null,null,null,null,null,23,374]
["   из них  оборудованы:\n      стационарными интерактивными досками (ед)",null,null,null,null,null,null,null,null,null,null,null,null,null,24,18]
["      мультимедийными проекторами (ед)",null,null,null,null,null,null,null,null,null,null,null,null,null,25,217]
["Количество мест в кабинетах основ информатики  и вычислительной техники (из стр.05) (мест)",null,null,null,null,null,null,null,null,null,null,null,null,null,26,179]

{"sheet":"Раздел 1.3","index":3,"n_rows":27,"n_cols":17,"rows_kept":27,"cut":false,"hidden":false,"merged":[[16,0,16,16],[17,0,17,16]]}
[]
[]
[]
[]
[]
[]
[]
[]
[]
[]
[]
[]
[]
[]
[]
[]
["1.3. Перевозка обучающихся, проживающих в отдаленных районах"]
["Код по ОКЕИ: единица – 642, человек – 792, место – 698"]
["Наименование показателей",null,null,null,null,null,null,null,null,null,null,null,null,null,"№\nстроки","Численность обучаю-щихся, нуждающихся в подвозе  в организацию  и (или) обратно","в том числе охвачено  подвозом"]
[1,null,null,null,null,null,null,null,null,null,null,null,null,null,2,3,4]
["1 - 4 классы",null,null,null,null,null,null,null,null,null,null,null,null,null,1,57,57]
["5 - 9 классы",null,null,null,null,null,null,null,null,null,null,null,null,null,2,92,92]
["10 - 11 (12) классы",null,null,null,null,null,null,null,null,null,null,null,null,null,3,9,9]
["Всего (сумма строк 01 - 03)",null,null,null,null,null,null,null,null,null,null,null,null,null,4,158,158]
["Справка 3.\nЧисло автотранспортных средств, предназначенных для перевозки обучающихся (ед)",null,null,null,null,null,null,null,null,null,null,null,null,null,5,8]
["   в них пассажирских мест  (мест)",null,null,null,null,null,null,null,null,null,null,null,null,null,6,165]
["Число  автотранспортных средств,  предназначенных для хозяйственных нужд (ед)",null,null,null,null,null,null,null,null,null,null,null,null,null,7,4]

{"sheet":"Раздел 1.4","index":4,"n_rows":28,"n_cols":20,"rows_kept":28,"cut":false,"hidden":false,"merged":[[27,0,27,19],[15,0,15,19],[16,0,16,19],[17,0,18,0],[17,14,18,14],[17,15,18,15],[17,16,18,16],[17,17,17,19]]}
[]
[]
[]
[]
[]
[]
[]
[]
[]
[]
[]
[]
[]
[]
[]
["1.4.  Охват обучающихся горячим питанием\n(на конец отчетного года)"]
["Коды по ОКЕИ: место – 698, человек –792"]
["Наименование показателей",null,null,null,null,null,null,null,null,null,null,null,null,null,"№\nстроки","Численность обуча-ющихся, обеспечен-ных горячим пита-нием (сумма граф 5, 6, 7)","из гр. 3 – имеющих льготы по оплате питания","Из гр. 3 -  численность обучающихся, получающих"]
[null,null,null,null,null,null,null,null,null,null,null,null,null,null,null,null,null," только горячие завтраки","только горячие обеды"," и завтраки, и обеды"]
[1,null,null,null,null,null,null,null,null,null,null,null,null,null,2,3,4,5,6,7]
["1 - 4 классы",null,null,null,null,null,null,null,null,null,null,null,null,null,1,2064,2064,1889,97,78]
["5 - 9 классы",null,null,null,null,null,null,null,null,null,null,null,null,null,2,1633,119,1008,485,140]
["10 - 11 (12) классы",null,null,null,null,null,null,null,null,null,null,null,null,null,3,209,15,104,93,12]
["Всего (сумма строк 01 - 03)",null,null,null,null,null,null,null,null,null,null,null,null,null,4,3906,2198,3001,675,230]
["Справка 4.\nЧисло посадочных мест в  столовой\n(зале для приема пищи)  (мест)",null,null,null,null,null,null,null,null,null,null,null,null,null,5,1395]
["   в том числе в приспособленных  помещениях (мест)",null,null,null,null,null,null,null,null,null,null,null,null,null,6,60]
[]
["Строка 5 - Заполняют организации, имеющие столовую (зал для приема пищи), заполнившие в разделе 1.2. строку 04 графы 03, 04"]

{"sheet":"Раздел 1.5","index":5,"n_rows":31,"n_cols":21,"rows_kept":31,"cut":false,"hidden":false,"merged":[[15,0,15,20],[16,0,16,20],[17,0,18,0],[17,14,18,14],[17,15,18,15],[17,16,18,16],[17,17,17,20]]}
[]
[]
[]
[]
[]
[]
[]
[]
[]
[]
[]
[]
[]
[]
[]
["1.5. Наличие и использование площадей"]
["Код по ОКЕИ: квадратный метр – 055 (в целых)"]
["Наименование показателей",null,null,null,null,null,null,null,null,null,null,null,null,null,"№\nстроки","Всего (сумма граф 5, 6, 7, 8)","в том числе площадь, сданная в аренду и (или) субаренду","Из гр. 3 площадь,  по форме владения (пользования)"]
[null,null,null,null,null,null,null,null,null,null,null,null,null,null,null,null,null," на правах собственности","в оперативном  управлении","арендованная","другие формы владения"]
[1,null,null,null,null,null,null,null,null,null,null,null,null,null,2,3,4,5,6,7,8]
["Общая площадь зданий (помещений) – всего\n(сумма строк 02, 04, 06,07)",null,null,null,null,null,null,null,null,null,null,null,null,null,1,52520,81,0,52520,0,0]
["   в том числе площадь по целям использования:\n      учебная",null,null,null,null,null,null,null,null,null,null,null,null,null,2,25119,72,0,25119,0,0]
["         из нее площадь  спортивных сооружений ",null,null,null,null,null,null,null,null,null,null,null,null,null,3,3961,0,0,3961,0,0]
["      учебно-вспомогательная",null,null,null,null,null,null,null,null,null,null,null,null,null,4,8039,0,0,8039,0,0]
["         из нее площадь,   занимаемая библиотекой",null,null,null,null,null,null,null,null,null,null,null,null,null,5,715,0,0,715,0,0]
["      подсобная",null,null,null,null,null,null,null,null,null,null,null,null,null,6,18855,9,0,18855,0,0]
["      прочих зданий (помещений)",null,null,null,null,null,null,null,null,null,null,null,null,null,7,507,0,0,507,0,0]
["Общая площадь земельного участка - всего",null,null,null,null,null,null,null,null,null,null,null,null,null,8,244063,0,0,0,0,244063]
["   из нее площадь:\n      физкультурно-спортивной зоны",null,null,null,null,null,null,null,null,null,null,null,null,null,9,45329,0,0,0,0,45329]
["      учебно-опытного участка",null,null,null,null,null,null,null,null,null,null,null,null,null,10,3018,0,0,0,0,3018]
["      подсобного сельского хозяйства",null,null,null,null,null,null,null,null,null,null,null,null,null,11,0,0,0,0,0,0]

{"sheet":"Раздел 1.6","index":6,"n_rows":60,"n_cols":16,"rows_kept":60,"cut":false,"hidden":false,"merged":[[16,0,16,15],[17,0,17,15]]}
[]
[]
[]
[]
[]
[]
[]
[]
[]
[]
[]
[]
[]
[]
[]
[]
["1.6. Деятельность организации"]
[]
["Наименование показателей",null,null,null,null,null,null,null,null,null,null,null,null,null,"№\nстроки","Код: да – 1, нет – 0"]
[1,null,null,null,null,null,null,null,null,null,null,null,null,null,2,3]
["Организация имеет особенности осуществляемой образовательной деятельности: ",null,null,null,null,null,null,null,null,null,null,null,null,null,1,5]
["   является интернатом",null,null,null,null,null,null,null,null,null,null,null,null,null,2,0]
["   имеет интернат (заполняют организации, указавшие в строке 02 код «0»)",null,null,null,null,null,null,null,null,null,null,null,null,null,3,1]
["   является вечерней (сменной)",null,null,null,null,null,null,null,null,null,null,null,null,null,4,0]
["   имеет классы очно-заочного и заочного обучения (заполняет организация,\n   указавшая в строке 04 код «0»)",null,null,null,null,null,null,null,null,null,null,null,null,null,5,0]
["   является отдельной общеобразовательной организацией для обучающихся с\n   ограниченными возможностями здоровья",null,null,null,null,null,null,null,null,null,null,null,null,null,6,0]
["      в том числе для: \n         глухих",null,null,null,null,null,null,null,null,null,null,null,null,null,7,0]
["         слабослышащих и позднооглохших",null,null,null,null,null,null,null,null,null,null,null,null,null,8,0]
["         слепых",null,null,null,null,null,null,null,null,null,null,null,null,null,9,0]
["         слабовидящих",null,null,null,null,null,null,null,null,null,null,null,null,null,10,0]
["         с тяжелыми нарушениями речи",null,null,null,null,null,null,null,null,null,null,null,null,null,11,0]
["         с нарушениями опорно-двигательного аппарата",null,null,null,null,null,null,null,null,null,null,null,null,null,12,0]
["         с задержкой психического развития",null,null,null,null,null,null,null,null,null,null,null,null,null,13,0]
["         с расстройствами аутистического спектра",null,null,null,null,null,null,null,null,null,null,null,null,null,14,0]
["         со сложными дефектами",null,null,null,null,null,null,null,null,null,null,null,null,null,15,0]
["         других обучающихся с ограниченными возможностями здоровья",null,null,null,null,null,null,null,null,null,null,null,null,null,16,0]
["   имеет отдельные классы для обучающихся с ограниченными возможностями\n   здоровья (заполняют организации, указавшие в строке 06 код «0»)",null,null,null,null,null,null,null,null,null,null,null,null,null,17,0]
["   является организацией (учреждением):\n      специальным учебно-воспитательным учреждением для обучающихся с\n      девиантным (общественно опасным) поведением",null,null,null,null,null,null,null,null,null,null,null,null,null,18,0]
["      для детей дошкольного и младшего школьного возраста",null,null,null,null,null,null,null,null,null,null,null,null,null,19,2]
["      для обучающихся, нуждающихся в длительном лечении",null,null,null,null,null,null,null,null,null,null,null,null,null,20,0]
["      для обучающихся, нуждающихся в психолого-педагогической медицинской\n      и социальной помощи",null,null,null,null,null,null,null,null,null,null,null,null,null,21,0]
["      для детей-сирот и детей, оставшихся без попечения родителей",null,null,null,null,null,null,null,null,null,null,null,null,null,22,0]
["      центром образования",null,null,null,null,null,null,null,null,null,null,null,null,null,23,0]
["      создана в уголовно-исполнительной системе",null,null,null,null,null,null,null,null,null,null,null,null,null,24,0]
["   обеспечивает углубленную подготовку:\n      организация с углубленным изучением отдельных предметов",null,null,null,null,null,null,null,null,null,null,null,null,null,25,1]
["      имеет отдельные классы с углубленным изучением отдельных предметов\n      (заполняют организации, указавшие в строке 25 код «0»)",null,null,null,null,null,null,null,null,null,null,null,null,null,26,0]
["      гимназия",null,null,null,null,null,null,null,null,null,null,null,null,null,27,1]
["      имеет гимназические классы (заполняют организации, указавшие в строке 27 код «0»)",null,null,null,null,null,null,null,null,null,null,null,null,null,28,0]
["      лицей",null,null,null,null,null,null,null,null,null,null,null,null,null,29,0]
["      имеет лицейские классы (заполняют организации, указавшие в строке 29 код «0»)",null,null,null,null,null,null,null,null,null,null,null,null,null,30,0]
["   обеспечивает подготовку к военной или гражданской службе:\n      президентское кадетское училище",null,null,null,null,null,null,null,null,null,null,null,null,null,31,0]
["      суворовское военное училище",null,null,null,null,null,null,null,null,null,null,null,null,null,32,0]
["      нахимовское военно-морское училище",null,null,null,null,null,null,null,null,null,null,null,null,null,33,0]
["      кадетский (морской кадетский) военный корпус",null,null,null,null,null,null,null,null,null,null,null,null,null,34,0]
["      кадетский (морской кадетский) корпус",null,null,null,null,null,null,null,null,null,null,null,null,null,35,0]
["      кадетская школа",null,null,null,null,null,null,null,null,null,null,null,null,null,36,1]
["      казачий кадетский корпус",null,null,null,null,null,null,null,null,null,null,null,null,null,37,0]
["      военно-музыкальное училище",null,null,null,null,null,null,null,null,null,null,null,null,null,38,0]
["   другая",null,null,null,null,null,null,null,null,null,null,null,null,null,39,0]
["Организация не имеет особенностей",null,null,null,null,null,null,null,null,null,null,null,null,null,40,10]

{"sheet":"Раздел 2.1","index":7,"n_rows":34,"n_cols":18,"rows_kept":34,"cut":false,"hidden":false,"merged":[[14,0,14,17],[15,0,15,17],[16,0,16,17],[17,0,18,0],[17,14,18,14],[17,15,18,15],[17,16,17,17]]}
[]
[]
[]
[]
[]
[]
[]
[]
[]
[]
[]
[]
[]
[]
["Раздел 2. Информационная база организации"]
["2.1. Количество персональных компьютеров и информационного оборудования\n(на конец отчетного года)"]
["Код по ОКЕИ: единица – 642"]
["Наименование показателей",null,null,null,null,null,null,null,null,null,null,null,null,null,"№\nстроки","Всего","в том числе используемых\nв учебных целях"]
[null,null,null,null,null,null,null,null,null,null,null,null,null,null,null,null,"всего","из них доступных для использования обучающимися в свободное от основных занятий время"]
[1,null,null,null,null,null,null,null,null,null,null,null,null,null,2,3,4,5]
["Персональные компьютеры – всего",null,null,null,null,null,null,null,null,null,null,null,null,null,1,542,447,351]
["   из них:\n      ноутбуки и другие портативные персональные компьютеры (кроме планшетных)",null,null,null,null,null,null,null,null,null,null,null,null,null,2,181,173,149]
["      планшетные компьютеры",null,null,null,null,null,null,null,null,null,null,null,null,null,3,15,15,15]
["      находящиеся в составе локальных вычислительных сетей",null,null,null,null,null,null,null,null,null,null,null,null,null,4,109,107,107]
["      имеющие доступ к Интернету",null,null,null,null,null,null,null,null,null,null,null,null,null,5,224,199,186]
["     имеющие доступ к Интранет-порталу организации",null,null,null,null,null,null,null,null,null,null,null,null,null,6,0,0,0]
["      поступившие в отчетном году",null,null,null,null,null,null,null,null,null,null,null,null,null,7,11,10,10]
["Электронные терминалы (инфоматы)",null,null,null,null,null,null,null,null,null,null,null,null,null,8,0]
["   из них с доступом к ресурсам Интернета",null,null,null,null,null,null,null,null,null,null,null,null,null,9,0]
["Мультимедийные проекторы",null,null,null,null,null,null,null,null,null,null,null,null,null,10,219]
["Интерактивные доски",null,null,null,null,null,null,null,null,null,null,null,null,null,11,18]
["Принтеры",null,null,null,null,null,null,null,null,null,null,null,null,null,12,85]
["Сканеры",null,null,null,null,null,null,null,null,null,null,null,null,null,13,15]
["Многофункциональные устройства (МФУ, выполняющие операции печати, сканирования, копирования)",null,null,null,null,null,null,null,null,null,null,null,null,null,14,50]

{"sheet":"Раздел 2.2","index":8,"n_rows":32,"n_cols":17,"rows_kept":32,"cut":false,"hidden":false,"merged":[[17,15,17,16],[17,0,18,0],[17,14,18,14],[15,0,15,16],[16,0,16,16]]}
[]
[]
[]
[]
[]
[]
[]
[]
[]
[]
[]
[]
[]
[]
[]
["2.2. Наличие специальных программных средств (кроме программных средств общего назначения)\n(на конец отчетного года)"]
[]
["Наименование показателей",null,null,null,null,null,null,null,null,null,null,null,null,null,"№\nстроки","Код: да – 1, нет – 0"]
[null,null,null,null,null,null,null,null,null,null,null,null,null,null,null,"Наличие в организации","в том числе доступно для использования учащимися"]
[1,null,null,null,null,null,null,null,null,null,null,null,null,null,2,3,4]
["Обучающие компьютерные программы по отдельным предметам или темам",null,null,null,null,null,null,null,null,null,null,null,null,null,1,11,11]
["Программы компьютерного тестирования",null,null,null,null,null,null,null,null,null,null,null,null,null,2,5,5]
["Электронные версии справочников, энциклопедий, словарей и т.п.",null,null,null,null,null,null,null,null,null,null,null,null,null,3,8,8]
["Электронные версии учебных пособий ",null,null,null,null,null,null,null,null,null,null,null,null,null,4,15,15]
["Электронные версии учебников",null,null,null,null,null,null,null,null,null,null,null,null,null,5,14,14]
["Электронная библиотека",null,null,null,null,null,null,null,null,null,null,null,null,null,6,0,0]
["Электронный журнал, электронный дневник",null,null,null,null,null,null,null,null,null,null,null,null,null,7,15,15]
["Электронные справочно-правовые системы",null,null,null,null,null,null,null,null,null,null,null,null,null,8,2,2]
["Специальные программные средства для решения организационных, управленческих и экономических задач (без учета систем автоматизированного документооборота)",null,null,null,null,null,null,null,null,null,null,null,null,null,9,2]
["Системы электронного документооборота",null,null,null,null,null,null,null,null,null,null,null,null,null,10,1,0]
["Средства контент-фильтрации доступа к Интернету",null,null,null,null,null,null,null,null,null,null,null,null,null,11,15,15]
["Другие программные средства",null,null,null,null,null,null,null,null,null,null,null,null,null,12,0,0]

{"sheet":"Раздел 2.3","index":9,"n_rows":24,"n_cols":16,"rows_kept":24,"cut":false,"hidden":false,"merged":[[13,0,13,15],[22,0,22,1],[23,0,23,1],[25,0,25,15],[18,0,18,1],[19,0,19,1],[20,0,20,1],[21,0,21,1],[12,1,12,15],[1,0,1,15],[2,0,2,15],[3,0,3,15],[4,0,4,15],[5,0,5,15],[6,0,6,15],[7,0,7,15],[8,0,8,15],[9,0,9,15],[10,0,10,15],[11,0,11,15]]}
[]
[]
[]
[]
[]
[]
[]
[]
[]
[]
[]
["2.3. Максимальная скорость доступа к Интернету\n(заполняют организации, имеющие доступ к Интернету (подраздел 2.1 стр. 05 гр. 3>0))"]
[]
["Укажите по каждой строке  графы 3 код, соответствующим следующим интервалам максимальной скорости доступа к Интернету:"]
["1 – ниже 256 Кбит/сек","5 – 2.0 - 30.0 Мбит/сек"]
["2 – 256 - 511 Кбит/сек","6 – 30.1 - 100.0 Мбит/сек"]
["3 – 512 - 999 Кбит/сек","7 – выше 100 Мбит/сек"]
["4 – 1.0 - 1.9 Мбит/сек","0 – этот вид доступа не используется "]
["Наименование показателей",null,null,null,null,null,null,null,null,null,null,null,null,null,"№\nстроки","Код"]
[1,null,null,null,null,null,null,null,null,null,null,null,null,null,2,3]
["Максимальная скорость доступа к  Интернету ",null,null,null,null,null,null,null,null,null,null,null,null,null,1,67]
["в том числе по типам доступа:\n   максимальная скорость фиксированного проводного доступа к Интернету\n   (модемное подключение через коммутируемую телефонную линию,  ISDN связь,  цифровая абонентская\n   линия (технология  xDSL и т.д.), другая кабельная связь (включая выделенные линии, оптоволокно и др.)",null,null,null,null,null,null,null,null,null,null,null,null,null,2,67]
["   максимальная скорость фиксированного беспроводного доступа к Интернету\n   (спутниковая связь, фиксированная беспроводная связь (например, Wi-Fi, WiMAX)",null,null,null,null,null,null,null,null,null,null,null,null,null,3,30]
["   максимальная скорость мобильного доступа к Интернету \n   (через любое устройство: портативный компьютер или мобильный сотовый телефон и т. д.)",null,null,null,null,null,null,null,null,null,null,null,null,null,4,0]

{"sheet":"Раздел 2.4","index":10,"n_rows":27,"n_cols":16,"rows_kept":27,"cut":false,"hidden":false,"merged":[[16,0,16,15],[17,0,17,15],[26,0,26,15]]}
[]
[]
[]
[]
[]
[]
[]
[]
[]
[]
[]
[]
[]
[]
[]
[]
["2.4. Информационная открытость организации"]
[]
["Наименование показателей",null,null,null,null,null,null,null,null,null,null,null,null,null,"№\nстроки","Код: да – 1, нет – 0"]
[1,null,null,null,null,null,null,null,null,null,null,null,null,null,2,3]
["Наличие фиксированной телефонной связи ",null,null,null,null,null,null,null,null,null,null,null,null,null,1,14]
["Адрес электронной почты",null,null,null,null,null,null,null,null,null,null,null,null,null,2,15]
["Веб-сайт в Интернете",null,null,null,null,null,null,null,null,null,null,null,null,null,3,15]
["Наличие на веб-сайте информации по нормативно закрепленному перечню сведений о  деятельности организации",null,null,null,null,null,null,null,null,null,null,null,null,null,4,15]
["Наличие данных об организации на официальном сайте для размещения информации о государственных и муниципальных организациях (bus.gov.ru)",null,null,null,null,null,null,null,null,null,null,null,null,null,5,15]
[]
["Строку 05 - заполняют государственные (муниципальные) образовательные организации"]

{"sheet":"Раздел 2.5","index":11,"n_rows":22,"n_cols":18,"rows_kept":22,"cut":false,"hidden":false,"merged":[[15,0,15,17],[17,15,17,17],[17,14,18,14],[17,0,18,0],[16,0,16,17]]}
[]
[]
[]
[]
[]
[]
[]
[]
[]
[]
[]
[]
[]
[]
[]
["2.5. Реализация образовательных программ с применением электронного обучения,\nдистанционных образовательных технологий"]
["Укажите в каждой строке по графам 3-5 соответствующий код: да – 1, нет – 0"]
["Наименование показателей",null,null,null,null,null,null,null,null,null,null,null,null,null,"№\nстроки","Реализация  образовательным программам"]
[null,null,null,null,null,null,null,null,null,null,null,null,null,null,null,"начального общего образования","основного общего образования","среднего общего образования"]
[1,null,null,null,null,null,null,null,null,null,null,null,null,null,2,3,4,5]
["Применение электронного обучения",null,null,null,null,null,null,null,null,null,null,null,null,null,1,15,13,10]
["Применение дистанционных образовательных технологий",null,null,null,null,null,null,null,null,null,null,null,null,null,2,0,4,1]

{"sheet":"Раздел 2.6","index":12,"n_rows":29,"n_cols":18,"rows_kept":29,"cut":false,"hidden":false,"merged":[[16,0,16,17],[17,0,17,17]]}
[]
[]
[]
[]
[]
[]
[]
[]
[]
[]
[]
[]
[]
[]
[]
[]
["2.6. Формирование и использование библиотечного фонда"]
["Код по ОКЕИ: единица – 642"]
["Наименование показателей",null,null,null,null,null,null,null,null,null,null,null,null,null,"№\nстроки","Поступило экземпляров за отчетный год","Выбыло экземпляров за отчетный год","Состоит экземпля-\nров на конец отчетного года"]
[1,null,null,null,null,null,null,null,null,null,null,null,null,null,2,3,4,5]
["Объем фондов  библиотеки – всего (сумма строк 06-09)",null,null,null,null,null,null,null,null,null,null,null,null,null,1,9554,3093,205897]
["   из него:\n      учебники",null,null,null,null,null,null,null,null,null,null,null,null,null,2,9258,1192,91980]
["      учебные пособия",null,null,null,null,null,null,null,null,null,null,null,null,null,3,0,0,1190]
["      художественная литература",null,null,null,null,null,null,null,null,null,null,null,null,null,4,281,1901,108917]
["      справочный материал",null,null,null,null,null,null,null,null,null,null,null,null,null,5,5,0,2062]
["   Из строки 01:\n      печатные  издания",null,null,null,null,null,null,null,null,null,null,null,null,null,6,9536,3093,204715]
["      аудиовизуальные документы",null,null,null,null,null,null,null,null,null,null,null,null,null,7,3,0,229]
["      документы на микроформах",null,null,null,null,null,null,null,null,null,null,null,null,null,8,0,0,0]
["      электронные документы",null,null,null,null,null,null,null,null,null,null,null,null,null,9,15,0,953]

{"sheet":"Раздел 2.7","index":13,"n_rows":31,"n_cols":16,"rows_kept":31,"cut":false,"hidden":false,"merged":[[16,0,16,15],[17,0,17,15]]}
[]
[]
[]
[]
[]
[]
[]
[]
[]
[]
[]
[]
[]
[]
[]
[]
["2.7. Информационное обслуживание и другие характеристики библиотеки\n(на конец отчетного года)"]
["Коды по ОКЕИ: место – 698; человек – 792, единица – 642"]
["Наименование показателей",null,null,null,null,null,null,null,null,null,null,null,null,null,"№\nстроки","Величина\nпоказателя"]
[1,null,null,null,null,null,null,null,null,null,null,null,null,null,2,3]
["Число посадочных мест для пользователей библиотеки, мест",null,null,null,null,null,null,null,null,null,null,null,null,null,1,121]
["   в том числе  оснащены  персональными компьютерами ",null,null,null,null,null,null,null,null,null,null,null,null,null,2,6]
["      из них  с доступом к Интернету",null,null,null,null,null,null,null,null,null,null,null,null,null,3,4]
["Численность зарегистрированных  пользователей библиотеки, человек",null,null,null,null,null,null,null,null,null,null,null,null,null,4,4785]
["Число посещений, человек",null,null,null,null,null,null,null,null,null,null,null,null,null,5,39116]
["Наличие электронного каталога в библиотеке (укажите соответствующий код: да  –  1;  нет –  0)",null,null,null,null,null,null,null,null,null,null,null,null,null,6,1]
["Количество персональных компьютеров, единиц",null,null,null,null,null,null,null,null,null,null,null,null,null,7,12]
["Наличие  в библиотеке (укажите соответствующий код: да  –  1;  нет –  0):\n   принтера",null,null,null,null,null,null,null,null,null,null,null,null,null,8,11]
["   сканера",null,null,null,null,null,null,null,null,null,null,null,null,null,9,4]
["   ксерокса",null,null,null,null,null,null,null,null,null,null,null,null,null,10,3]
["   стационарной интерактивной доски",null,null,null,null,null,null,null,null,null,null,null,null,null,11,0]

{"sheet":"Раздел 3.1","index":14,"n_rows":32,"n_cols":18,"rows_kept":32,"cut":false,"hidden":false,"merged":[[17,16,17,17],[14,0,14,17],[15,0,15,17],[16,0,16,17],[17,0,18,0],[17,14,18,14],[17,15,18,15]]}
[]
[]
[]
[]
[]
[]
[]
[]
[]
[]
[]
[]
[]
[]
["Раздел 3. Финансово-экономическая деятельность  организации"]
["3.1. Распределение объема средств  организации по источникам их получения и видам деятельности"]
["Код по ОКЕИ: тысяча рублей – 384 (с одним десятичным знаком)"]
["Наименование показателей",null,null,null,null,null,null,null,null,null,null,null,null,null,"№\nстроки","Всего\n(сумма\nгр. 4, 5)","в том числе по видам деятельности"]
[null,null,null,null,null,null,null,null,null,null,null,null,null,null,null,null,"Образовательная","прочие виды "]
[1,null,null,null,null,null,null,null,null,null,null,null,null,null,2,3,4,5]
["Объем поступивших средств  (за отчетный год) – всего (сумма строк  02, 06, 07, 08, 09)",null,null,null,null,null,null,null,null,null,null,null,null,null,1,364791.71875,360745.9375,4045.80029296875]
["   в том числе средства:\n      бюджетов всех уровней (субсидий)  – всего (сумма строк 03–05)",null,null,null,null,null,null,null,null,null,null,null,null,null,2,349651.71875,346588.21875,3063.500244140625]
["         в том числе бюджета:\n            федерального",null,null,null,null,null,null,null,null,null,null,null,null,null,3,0,0,0]
["            субъекта РФ",null,null,null,null,null,null,null,null,null,null,null,null,null,4,308085.40625,305021.90625,3063.500244140625]
["            местного ",null,null,null,null,null,null,null,null,null,null,null,null,null,5,41566.296875,41566.296875,0]
["      организаций",null,null,null,null,null,null,null,null,null,null,null,null,null,6,1737.4000244140625,755.0999755859375,982.29998779296875]
["      населения",null,null,null,null,null,null,null,null,null,null,null,null,null,7,13402.6005859375,13402.6005859375,0]
["      внебюджетных фондов ",null,null,null,null,null,null,null,null,null,null,null,null,null,8,0,0,0]
["      иностранных источников",null,null,null,null,null,null,null,null,null,null,null,null,null,9,0,0,0]
["Справка 5.\nОстаток средств:\n   на начало отчетного года (тысяча рублей)",null,null,null,null,null,null,null,null,null,null,null,null,null,10,7800.10009765625]
["   на конец  отчетного года (тысяча рублей)",null,null,null,null,null,null,null,null,null,null,null,null,null,11,12010.7998046875]
["Справка 6.\nОрганизация переведена на нормативное подушевое финансирование (код:  да – 1, нет – 0) ",null,null,null,null,null,null,null,null,null,null,null,null,null,12,15]

{"sheet":"Раздел 3.2","index":15,"n_rows":40,"n_cols":18,"rows_kept":40,"cut":false,"hidden":false,"merged":[[15,0,15,17],[16,0,16,17],[17,0,18,0],[17,14,18,14],[17,15,18,15],[17,16,17,17]]}
[]
[]
[]
[]
[]
[]
[]
[]
[]
[]
[]
[]
[]
[]
[]
["3.2. Расходы организации"]
["Код по ОКЕИ: тысяча рублей – 384 (с одним десятичным знаком)"]
["Наименование показателей",null,null,null,null,null,null,null,null,null,null,null,null,null,"№\nстроки","Всего","в том числе осуществляемые"]
[null,null,null,null,null,null,null,null,null,null,null,null,null,null,null,null,"за счет средств бюджетов  всех уровней (субсидий)","из них (из гр. 4) – за счет средств на выполнение государственного (муниципального) задания"]
[1,null,null,null,null,null,null,null,null,null,null,null,null,null,2,3,4,5]
["Расходы (сумма строк  02, 06, 13, 14)",null,null,null,null,null,null,null,null,null,null,null,null,null,1,320166.09375,316400.1875,313021.40625]
["   в том числе:\n      оплата труда и начисления на выплаты по оплате труда (сумма строк 03–05)",null,null,null,null,null,null,null,null,null,null,null,null,null,2,277005.6875,275554.90625,272607.09375]
["         заработная плата",null,null,null,null,null,null,null,null,null,null,null,null,null,3,211007.5,209570.390625,206956.90625]
["         прочие выплаты",null,null,null,null,null,null,null,null,null,null,null,null,null,4,3038.400146484375,3026.5,2983.699951171875]
["         начисления на выплаты по оплате труда",null,null,null,null,null,null,null,null,null,null,null,null,null,5,62959.796875,62958,62666.50390625]
["      оплата работ, услуг (сумма строк 07–12)",null,null,null,null,null,null,null,null,null,null,null,null,null,6,37605.6015625,35533.40234375,35406.90234375]
["         в том числе:\n            услуги связи",null,null,null,null,null,null,null,null,null,null,null,null,null,7,1319.300048828125,1274.5999755859375,1274.5999755859375]
["            транспортные услуги",null,null,null,null,null,null,null,null,null,null,null,null,null,8,142.10000610351563,142.10000610351563,142.10000610351563]
["            коммунальные услуги",null,null,null,null,null,null,null,null,null,null,null,null,null,9,28392.599609375,27684.80078125,27684.80078125]
["            арендная плата за пользование имуществом",null,null,null,null,null,null,null,null,null,null,null,null,null,10,334.5,334.5,334.5]
["            работы, услуги по содержанию имущества",null,null,null,null,null,null,null,null,null,null,null,null,null,11,3840.199951171875,3659.900146484375,3659.900146484375]
["            прочие работы, услуги",null,null,null,null,null,null,null,null,null,null,null,null,null,12,3576.900146484375,2437.5,2311]
["      социальное обеспечение",null,null,null,null,null,null,null,null,null,null,null,null,null,13,116.09999847412109,67,67]
["      прочие расходы",null,null,null,null,null,null,null,null,null,null,null,null,null,14,5438.69921875,5244.8994140625,4940.39990234375]
["Поступление нефинансовых активов  (сумма строк 16-19)",null,null,null,null,null,null,null,null,null,null,null,null,null,15,40414.90625,28295.8984375,8782.099609375]
["   в том числе:\n      увеличение стоимости основных средств",null,null,null,null,null,null,null,null,null,null,null,null,null,16,4235.5,4194.2001953125,4194.2001953125]
["      увеличение стоимости нематериальных активов",null,null,null,null,null,null,null,null,null,null,null,null,null,17,0,0,0]
["      увеличение стоимости непроизведенных активов ",null,null,null,null,null,null,null,null,null,null,null,null,null,18,0,0,0]
["      увеличение стоимости материальных запасов",null,null,null,null,null,null,null,null,null,null,null,null,null,19,36179.3984375,24101.69921875,4587.900390625]
["Справка 7.\nНаличие программы энергосбережения в организации (код:  да – 1, нет – 0) ",null,null,null,null,null,null,null,null,null,null,null,null,null,20,15]

{"sheet":"Раздел 3.3","index":16,"n_rows":36,"n_cols":26,"rows_kept":36,"cut":false,"hidden":false,"merged":[[14,0,14,25],[15,0,15,25],[16,0,18,0],[16,14,18,14],[16,15,16,16],[16,17,16,19],[16,20,16,25],[17,15,18,15],[17,16,18,16],[17,17,17,18],[33,0,33,25],[34,0,34,25],[35,0,35,25],[36,0,36,25],[17,19,18,19],[17,20,17,22],[17,23,17,25],[32,0,32,25]]}
[]
[]
[]
[]
[]
[]
[]
[]
[]
[]
[]
[]
[]
[]
["3.3. Сведения о численности и оплате труда  работников организации"]
["Коды по ОКЕИ: человек – 792 (с одним десятичным знаком); тысяча рублей – 384 (с одним десятичным знаком)"]
["Наименование показателей",null,null,null,null,null,null,null,null,null,null,null,null,null,"№\nстроки","Средняя численность работников, человек",null,"Фонд начисленной заработной платы работников, тыс руб ",null,null,"Фонд начисленной заработной платы работников по источникам финансирования, тыс руб"]
[null,null,null,null,null,null,null,null,null,null,null,null,null,null,null,"списочного состава (без внешних сов-местителей) 1)","внешних сов-местителей 2)","списочного состава\n(без внешних совместителей)",null,"внешних совместителей (сумма граф 11, 12 и 13)","из гр.5 списочного состава\n(без внешних совместителей)",null,null,"из гр.7 внешних совместителей"]
[null,null,null,null,null,null,null,null,null,null,null,null,null,null,null,null,null,"Всего (сумма граф 8, 9, 10)","в том числе по внутреннему совмести-тельству 3)",null,"за счет средств бюджетов всех уровней (субсидий)","ОМС 4)","средства от приносящей доход деятельности","за счет средств бюджетов всех уровней (субсидий)","ОМС","средства от приносящей доход деятельности"]
[1,null,null,null,null,null,null,null,null,null,null,null,null,null,2,3,4,5,6,7,8,9,10,11,12,13]
["Всего работников (сумма строк  02, 04,07, 08)",null,null,null,null,null,null,null,null,null,null,null,null,null,1,651.199951171875,13.59999942779541,207156,3061,2911,207138.390625,0,17.600000381469727,2911,0,0]
["   в том числе:\n      руководящие работники",null,null,null,null,null,null,null,null,null,null,null,null,null,2,47.799999237060547,0.30000001192092896,25762,1802.5999755859375,108.40000152587891,25762,0,0,108.40000152587891,0,0]
["         из них директор, заместители директора",null,null,null,null,null,null,null,null,null,null,null,null,null,3,45.799999237060547,0.30000001192092896,25028.798828125,1802.5999755859375,108.40000152587891,25028.798828125,0,0,108.40000152587891,0,0]
["      педагогические работники",null,null,null,null,null,null,null,null,null,null,null,null,null,4,322.10000610351563,8.6000003814697266,142051.703125,1077.5,2242,142034.09375,0,17.600000381469727,2242,0,0]
["         из них:\n            учителя",null,null,null,null,null,null,null,null,null,null,null,null,null,5,303.30001831054688,6.3000006675720215,136126.296875,673.5,2070.300048828125,136108.6875,0,17.600000381469727,2070.300048828125,0,0]
["            педагоги дополнительного образования",null,null,null,null,null,null,null,null,null,null,null,null,null,6,0,0,0,0,0,0,0,0,0,0,0]
["       учебно-вспомогательный персонал",null,null,null,null,null,null,null,null,null,null,null,null,null,7,30.200000762939453,0.80000001192092896,6017.50048828125,20.899999618530273,99.900001525878906,6017.50048828125,0,0,99.900001525878906,0,0]
["       иной персонал",null,null,null,null,null,null,null,null,null,null,null,null,null,8,251.10000610351563,3.8999998569488525,33324.80078125,160,460.70001220703125,33324.80078125,0,0,460.70001220703125,0,0]
["Из строки 04:\n   персонал, работающий в подразделениях дошкольного\n   образования",null,null,null,null,null,null,null,null,null,null,null,null,null,9,5.9000000953674316,0,1511.4000244140625,0,0,1511.4000244140625,0,0,0,0,0]
["      из них воспитатели",null,null,null,null,null,null,null,null,null,null,null,null,null,10,3.2000000476837158,0,1029.5999755859375,0,0,1029.5999755859375,0,0,0,0,0]
["Справка 8.\nОрганизация переведена на  новую (отраслевую) систему оплаты труда, ориентированную на результат (код:  да – 1, нет – 0) ",null,null,null,null,null,null,null,null,null,null,null,null,null,11,15]
[]
["1) Среднесписочная численность работников."]
["2) Исчисляется пропорционально фактически отработанному времени."]
["3) Включая вознаграждение за работу по договорам гражданско-правового характера, заключенным работником списочного состава со своей организацией."]
["4) Обязательное медицинское страхование."]

{"sheet":"Раздел 3.4","index":17,"n_rows":34,"n_cols":23,"rows_kept":34,"cut":false,"hidden":false,"merged":[[16,0,16,16],[17,0,17,16],[29,15,29,16],[29,18,29,20],[28,0,28,14],[29,0,29,14],[29,22,29,24],[30,22,30,24],[33,15,33,16],[33,22,33,24],[32,18,32,20],[33,18,33,20],[30,15,30,16],[30,18,30,20],[32,15,32,16],[32,22,32,24]]}
[]
[]
[]
[]
[]
[]
[]
[]
[]
[]
[]
[]
[]
[]
[]
[]
["3.4. Сведения о численности обучающихся в организации"]
["Код по ОКЕИ: человек – 792"]
["Наименование показателей",null,null,null,null,null,null,null,null,null,null,null,null,null,"№\nстроки","Численность обучающихся (на конец отчетного года)","Среднегодовая численность обучающихся (с одним десятичным знаком) "]
[1,null,null,null,null,null,null,null,null,null,null,null,null,null,2,3,4]
["Численность  обучающихся – всего (сумма строк 02-04)",null,null,null,null,null,null,null,null,null,null,null,null,null,1,4882,4878.2001953125]
["   из них:\n      в 1 - 4 классах",null,null,null,null,null,null,null,null,null,null,null,null,null,2,2064,2070.199951171875]
["      в  5 - 9 классах",null,null,null,null,null,null,null,null,null,null,null,null,null,3,2432,2397.699951171875]
["      в 10 - 11 (12) класса",null,null,null,null,null,null,null,null,null,null,null,null,null,4,386,410.29998779296875]
["Численность  воспитанников, занимающихся в дошкольных образовательных группах",null,null,null,null,null,null,null,null,null,null,null,null,null,5,28,30]
["Численность обучающихся в подготовительных классах",null,null,null,null,null,null,null,null,null,null,null,null,null,6,0,0]
[]
[]
["Должностное лицо, ответственное за предоставление статистической\nинформации (лицо, уполномоченное предоставлять статистическую "]
["информацию от имени юридического лица) "]
[null,null,null,null,null,null,null,null,null,null,null,null,null,null,null,"(должность)",null,null,"(Ф.И.О)",null,null,null,"(подпись)"]
[]
[]
[null,null,null,null,null,null,null,null,null,null,null,null,null,null,null,"(номер контактного телефона)",null,null,"E-mail",null,null,null,"(дата составления документа)"]

{"sheet":"Spravichnik","index":18,"n_rows":0,"n_cols":0,"rows_kept":0,"cut":false,"hidden":true,"merged":[]}

{"sheet":"Флак","index":19,"n_rows":0,"n_cols":0,"rows_kept":0,"cut":false,"hidden":true,"merged":[]}

{"sheet":"Rezerv","index":20,"n_rows":0,"n_cols":0,"rows_kept":0,"cut":false,"hidden":true,"merged":[]}